[Event "Titled Tuesday Blitz November 01 Early 2022"]
[White "Predke, Alexandr"]
[Black "Arabidze, Meri"]
[WhiteFideId "24107581"]
[BlackFideId "13604040"]
[WhiteElo "2614"]
[BlackElo "2403"]
[Result "0-1"]
[Round "02"]
[TimeControl "180+1"]
[Date "2022.11.01"]
[WhiteClock "0:00:02"]
[BlackClock "0:00:18"]

1. Nf3 {[%clk 0:02:59]}  c5 {[%clk 0:02:59]} 2. c4 {[%clk 0:02:57]}  Nc6 {[%clk 0:02:57]} 3. d4 {[%clk 0:02:56]}  cxd4 {[%clk 0:02:57]} 4. Nxd4 {[%clk 0:02:57]}  d6 {[%clk 0:02:56]} 5. Nc3 {[%clk 0:02:51]}  Nf6 {[%clk 0:02:55]} 6. e4 {[%clk 0:02:50]}  g6 {[%clk 0:02:55]} 7. Be2 {[%clk 0:02:49]}  Bg7 {[%clk 0:02:55]} 8. Be3 {[%clk 0:02:47]}  O-O {[%clk 0:02:55]} 9. f3 {[%clk 0:02:36]}  Bd7 {[%clk 0:02:50]} 10. Qd2 {[%clk 0:02:25]}  Nxd4 {[%clk 0:02:49]} 11. Bxd4 {[%clk 0:02:25]}  a5 {[%clk 0:02:50]} 12. b3 {[%clk 0:02:24]}  Bc6 {[%clk 0:02:40]} 13. O-O {[%clk 0:02:21]}  Nd7 {[%clk 0:02:40]} 14. Bxg7 {[%clk 0:02:01]}  Kxg7 {[%clk 0:02:41]} 15. f4 {[%clk 0:02:02]}  Qb6+ {[%clk 0:02:34]} 16. Kh1 {[%clk 0:02:02]}  a4 {[%clk 0:02:34]} 17. bxa4 {[%clk 0:01:52]}  Qc5 {[%clk 0:02:23]} 18. Rab1 {[%clk 0:01:51]}  Nb6 {[%clk 0:02:14]} 19. Nd5 {[%clk 0:01:24]}  Nxa4 {[%clk 0:01:54]} 20. Nxe7 {[%clk 0:01:11]}  Bxe4 {[%clk 0:01:54]} 21. f5 {[%clk 0:01:11]}  f6 {[%clk 0:01:42]} 22. fxg6 {[%clk 0:00:50]}  Bxb1 {[%clk 0:01:41]} 23. Rxb1 {[%clk 0:00:47]}  hxg6 {[%clk 0:01:38]} 24. Bd3 {[%clk 0:00:19]}  Qg5 {[%clk 0:01:19]} 25. Qf2 {[%clk 0:00:19]}  Nc5 {[%clk 0:01:13]} 26. Bxg6 {[%clk 0:00:18]}  f5 {[%clk 0:01:02]} 27. Qe2 {[%clk 0:00:18]}  Ne4 {[%clk 0:00:48]} 28. Bxf5 {[%clk 0:00:04]}  Rxf5 {[%clk 0:00:30]} 29. Qxe4 {[%clk 0:00:04]}  Re5 {[%clk 0:00:24]} 30. Qxb7 {[%clk 0:00:04]}  Qxe7 {[%clk 0:00:23]} 31. Qb2 {[%clk 0:00:02]}  Rb8 {[%clk 0:00:18]} 0-1


[Site "https://www.chess.com"]

[Event "Titled Tuesday Blitz November 01 Early 2022"]
[White "Rakhimgaliyev, Yerlan"]
[Black "Levine, David"]
[WhiteFideId "13705148"]
[BlackFideId "2011611"]
[WhiteElo "2261"]
[BlackElo "2210"]
[Result "0-1"]
[Round "02"]
[TimeControl "180+1"]
[Date "2022.11.02"]
[WhiteClock "0:01:40"]
[BlackClock "0:00:50"]

1. e4 {[%clk 0:03:00]}  e5 {[%clk 0:02:59]} 2. Nf3 {[%clk 0:02:58]}  Nc6 {[%clk 0:02:59]} 3. Bb5 {[%clk 0:02:59]}  a6 {[%clk 0:02:59]} 4. Ba4 {[%clk 0:02:59]}  Nf6 {[%clk 0:02:59]} 5. O-O {[%clk 0:02:59]}  Be7 {[%clk 0:02:59]} 6. d3 {[%clk 0:02:58]}  d6 {[%clk 0:02:56]} 7. Nc3 {[%clk 0:02:56]}  O-O {[%clk 0:02:54]} 8. h3 {[%clk 0:02:57]}  Bd7 {[%clk 0:02:54]} 9. Bg5 {[%clk 0:02:54]}  h6 {[%clk 0:02:52]} 10. Bh4 {[%clk 0:02:55]}  Re8 {[%clk 0:02:46]} 11. Nd5 {[%clk 0:02:54]}  Nxd5 {[%clk 0:02:43]} 12. exd5 {[%clk 0:02:55]}  Bxh4 {[%clk 0:02:40]} 13. dxc6 {[%clk 0:02:53]}  bxc6 {[%clk 0:02:39]} 14. d4 {[%clk 0:02:51]}  e4 {[%clk 0:02:34]} 15. Nd2 {[%clk 0:02:51]}  d5 {[%clk 0:02:31]} 16. c4 {[%clk 0:02:48]}  Bf6 {[%clk 0:02:21]} 17. Nb3 {[%clk 0:02:42]}  dxc4 {[%clk 0:02:05]} 18. Na5 {[%clk 0:02:36]}  Re6 {[%clk 0:02:01]} 19. Nxc4 {[%clk 0:02:28]}  Be8 {[%clk 0:01:52]} 20. Qc2 {[%clk 0:02:15]}  Bxd4 {[%clk 0:01:48]} 21. Rad1 {[%clk 0:02:14]}  c5 {[%clk 0:01:48]} 22. Na5 {[%clk 0:02:08]}  e3 {[%clk 0:01:26]} 23. fxe3 {[%clk 0:02:01]}  Rxe3 {[%clk 0:01:25]} 24. Kh1 {[%clk 0:01:57]}  Qh4 {[%clk 0:01:19]} 25. Nc6 {[%clk 0:01:48]}  Bxc6 {[%clk 0:00:54]} 26. Bxc6 {[%clk 0:01:49]}  Rb8 {[%clk 0:00:54]} 27. Qc4 {[%clk 0:01:40]}  Rxh3+ {[%clk 0:00:50]} 0-1


[Site "https://www.chess.com"]

[Event "Titled Tuesday Blitz November 01 Early 2022"]
[White "Rakhmanov, Aleksandr"]
[Black "Demin, Vladimir"]
[WhiteFideId "4173708"]
[BlackFideId "4167457"]
[WhiteElo "2530"]
[BlackElo "2569"]
[Result "1-0"]
[Round "02"]
[TimeControl "180+1"]
[Date "2022.11.02"]
[WhiteClock "0:00:15"]
[BlackClock "0:00:43"]

1. d4 {[%clk 0:03:00]}  Nf6 {[%clk 0:02:57]} 2. c4 {[%clk 0:03:01]}  e5 {[%clk 0:02:57]} 3. dxe5 {[%clk 0:03:00]}  Ng4 {[%clk 0:02:58]} 4. e3 {[%clk 0:02:54]}  Nxe5 {[%clk 0:02:57]} 5. f4 {[%clk 0:02:54]}  Ng6 {[%clk 0:02:54]} 6. Nf3 {[%clk 0:02:50]}  Nc6 {[%clk 0:02:54]} 7. Bd3 {[%clk 0:02:48]}  Bc5 {[%clk 0:02:53]} 8. Nc3 {[%clk 0:02:40]}  d6 {[%clk 0:02:52]} 9. Ne4 {[%clk 0:02:34]}  Bb6 {[%clk 0:02:49]} 10. a3 {[%clk 0:02:16]}  a5 {[%clk 0:02:48]} 11. Qc2 {[%clk 0:02:13]}  Bg4 {[%clk 0:02:37]} 12. Bd2 {[%clk 0:02:12]}  Bxf3 {[%clk 0:02:20]} 13. gxf3 {[%clk 0:02:13]}  Qh4+ {[%clk 0:02:20]} 14. Ng3 {[%clk 0:02:07]}  O-O {[%clk 0:02:12]} 15. O-O-O {[%clk 0:02:00]}  Rfe8 {[%clk 0:02:09]} 16. Nf5 {[%clk 0:01:53]}  Qh3 {[%clk 0:02:08]} 17. Rhg1 {[%clk 0:01:23]}  Qxh2 {[%clk 0:01:48]} 18. Kb1 {[%clk 0:00:51]}  f6 {[%clk 0:01:05]} 19. Nxg7 {[%clk 0:00:27]}  Kxg7 {[%clk 0:00:54]} 20. Bxg6 {[%clk 0:00:24]}  Rh8 {[%clk 0:00:51]} 21. Bh5+ {[%clk 0:00:15]}  Kf8 {[%clk 0:00:50]} 22. Qf5 {[%clk 0:00:16]}  Ke7 {[%clk 0:00:43]} 23. Rg7+ {[%clk 0:00:15]}  Kd8 {[%clk 0:00:43]} 24. Qd7# {[%clk 0:00:15]} 1-0


[Site "https://www.chess.com"]

[Event "Titled Tuesday Blitz November 01 Early 2022"]
[White "Rangel, Daniel"]
[Black "Salgado Lopez, Ivan"]
[WhiteFideId "2124475"]
[BlackFideId "2257327"]
[WhiteElo "2225"]
[BlackElo "2594"]
[Result "0-1"]
[Round "02"]
[TimeControl "180+1"]
[Date "2022.11.02"]
[WhiteClock "0:00:06"]
[BlackClock "0:00:34"]

1. c4 {[%clk 0:02:19]}  g6 {[%clk 0:02:57]} 2. g3 {[%clk 0:02:20]}  Bg7 {[%clk 0:02:56]} 3. Bg2 {[%clk 0:02:20]}  Nf6 {[%clk 0:02:56]} 4. e3 {[%clk 0:02:14]}  O-O {[%clk 0:02:57]} 5. Ne2 {[%clk 0:02:15]}  d6 {[%clk 0:02:57]} 6. O-O {[%clk 0:02:16]}  e5 {[%clk 0:02:57]} 7. b3 {[%clk 0:02:14]}  Re8 {[%clk 0:02:57]} 8. Bb2 {[%clk 0:02:14]}  h5 {[%clk 0:02:56]} 9. d4 {[%clk 0:02:14]}  e4 {[%clk 0:02:56]} 10. h4 {[%clk 0:02:10]}  Bf5 {[%clk 0:02:52]} 11. d5 {[%clk 0:02:09]}  Nbd7 {[%clk 0:02:51]} 12. Nf4 {[%clk 0:02:08]}  Ne5 {[%clk 0:02:49]} 13. Na3 {[%clk 0:02:05]}  Nfg4 {[%clk 0:02:35]} 14. Rb1 {[%clk 0:01:55]}  g5 {[%clk 0:02:35]} 15. Nxh5 {[%clk 0:01:53]}  gxh4 {[%clk 0:02:35]} 16. Nxg7 {[%clk 0:01:52]}  Kxg7 {[%clk 0:02:33]} 17. Bxe4 {[%clk 0:01:40]}  Bd7 {[%clk 0:01:33]} 18. f4 {[%clk 0:01:16]}  Nxe3 {[%clk 0:01:33]} 19. fxe5 {[%clk 0:01:03]}  Nxd1 {[%clk 0:01:29]} 20. e6+ {[%clk 0:01:02]}  f6 {[%clk 0:01:13]} 21. Bxf6+ {[%clk 0:00:50]}  Qxf6 {[%clk 0:01:10]} 22. Rxf6 {[%clk 0:00:51]}  Kxf6 {[%clk 0:01:11]} 23. Rxd1 {[%clk 0:00:48]}  Rg8 {[%clk 0:01:04]} 24. exd7 {[%clk 0:00:43]}  Rxg3+ {[%clk 0:01:04]} 25. Kf2 {[%clk 0:00:43]}  Rf8 {[%clk 0:00:58]} 26. Rd3 {[%clk 0:00:34]}  Ke7+ {[%clk 0:00:56]} 27. Rf3 {[%clk 0:00:33]}  Rgxf3+ {[%clk 0:00:52]} 28. Bxf3 {[%clk 0:00:34]}  h3 {[%clk 0:00:52]} 29. Kg3 {[%clk 0:00:30]}  h2 {[%clk 0:00:48]} 30. Bh1 {[%clk 0:00:20]}  Kxd7 {[%clk 0:00:45]} 31. Nb5 {[%clk 0:00:15]}  a6 {[%clk 0:00:40]} 32. Nd4 {[%clk 0:00:13]}  Rf1 {[%clk 0:00:37]} 33. Kxh2 {[%clk 0:00:12]}  Ra1 {[%clk 0:00:37]} 34. Be4 {[%clk 0:00:10]}  Rxa2+ {[%clk 0:00:37]} 35. Kg3 {[%clk 0:00:10]}  Rd2 {[%clk 0:00:36]} 36. Bf5+ {[%clk 0:00:09]}  Ke7 {[%clk 0:00:33]} 37. Ne6 {[%clk 0:00:10]}  Rb2 {[%clk 0:00:32]} 38. Nxc7 {[%clk 0:00:08]}  Rxb3+ {[%clk 0:00:33]} 39. Kf4 {[%clk 0:00:07]}  a5 {[%clk 0:00:33]} 40. Nb5 {[%clk 0:00:06]}  a4 {[%clk 0:00:34]} 41. Bc2 {[%clk 0:00:06]}  Rb4 {[%clk 0:00:34]} 0-1


[Site "https://www.chess.com"]

[Event "Titled Tuesday Blitz November 01 Early 2022"]
[White "Ristic, Nebojsa B"]
[Black "Makhmudov, Shukhrat"]
[WhiteFideId "935468"]
[BlackFideId "14200775"]
[WhiteElo "2320"]
[BlackElo "2135"]
[Result "1-0"]
[Round "02"]
[TimeControl "180+1"]
[Date "2022.11.02"]
[WhiteClock "0:01:25"]
[BlackClock "0:00:15"]

1. d4 {[%clk 0:03:00]}  Nf6 {[%clk 0:02:59]} 2. Bf4 {[%clk 0:03:00]}  d5 {[%clk 0:02:59]} 3. e3 {[%clk 0:02:59]}  c5 {[%clk 0:02:59]} 4. Nf3 {[%clk 0:02:58]}  Nc6 {[%clk 0:03:00]} 5. Nbd2 {[%clk 0:02:58]}  Bf5 {[%clk 0:02:51]} 6. c3 {[%clk 0:02:51]}  e6 {[%clk 0:02:49]} 7. dxc5 {[%clk 0:02:39]}  Bxc5 {[%clk 0:02:47]} 8. Nd4 {[%clk 0:02:39]}  Nxd4 {[%clk 0:02:37]} 9. exd4 {[%clk 0:02:39]}  Be7 {[%clk 0:02:32]} 10. Bb5+ {[%clk 0:02:36]}  Nd7 {[%clk 0:02:29]} 11. Nf3 {[%clk 0:02:31]}  O-O {[%clk 0:02:27]} 12. O-O {[%clk 0:02:30]}  Bg4 {[%clk 0:02:25]} 13. h3 {[%clk 0:02:29]}  Bh5 {[%clk 0:02:25]} 14. Be2 {[%clk 0:02:22]}  Qb6 {[%clk 0:02:20]} 15. Qb3 {[%clk 0:02:21]}  Qxb3 {[%clk 0:02:16]} 16. axb3 {[%clk 0:02:22]}  a6 {[%clk 0:02:16]} 17. b4 {[%clk 0:02:22]}  f6 {[%clk 0:02:13]} 18. g4 {[%clk 0:02:22]}  Bf7 {[%clk 0:02:12]} 19. Nd2 {[%clk 0:02:22]}  e5 {[%clk 0:02:12]} 20. Be3 {[%clk 0:02:22]}  h6 {[%clk 0:02:04]} 21. Nb3 {[%clk 0:02:21]}  Rfe8 {[%clk 0:01:36]} 22. Rfe1 {[%clk 0:02:21]}  Nf8 {[%clk 0:01:31]} 23. Bf1 {[%clk 0:02:10]}  e4 {[%clk 0:01:24]} 24. Bf4 {[%clk 0:02:09]}  Ne6 {[%clk 0:01:04]} 25. Bg3 {[%clk 0:02:07]}  Ng5 {[%clk 0:01:02]} 26. Bg2 {[%clk 0:02:02]}  Red8 {[%clk 0:00:50]} 27. h4 {[%clk 0:01:44]}  Ne6 {[%clk 0:00:38]} 28. f3 {[%clk 0:01:44]}  exf3 {[%clk 0:00:36]} 29. Bxf3 {[%clk 0:01:45]}  Rd7 {[%clk 0:00:20]} 30. Re2 {[%clk 0:01:40]}  Bd6 {[%clk 0:00:18]} 31. Bxd6 {[%clk 0:01:32]}  Rxd6 {[%clk 0:00:18]} 32. Rae1 {[%clk 0:01:32]}  Nf4 {[%clk 0:00:18]} 33. Re3 {[%clk 0:01:30]}  g5 {[%clk 0:00:17]} 34. h5 {[%clk 0:01:28]}  Be6 {[%clk 0:00:17]} 35. Nc5 {[%clk 0:01:28]}  b6 {[%clk 0:00:16]} 36. Nxe6 {[%clk 0:01:27]}  Nxe6 {[%clk 0:00:14]} 37. Rxe6 {[%clk 0:01:28]}  Rxe6 {[%clk 0:00:15]} 38. Rxe6 {[%clk 0:01:29]}  a5 {[%clk 0:00:15]} 39. Bxd5 {[%clk 0:01:25]} 1-0


[Site "https://www.chess.com"]

[Event "Titled Tuesday Blitz November 01 Early 2022"]
[White "Romero Ruscalleda, Josep"]
[Black "Ferreira, Vitor Hugo Vieira"]
[WhiteFideId "2231859"]
[BlackFideId "2119765"]
[WhiteElo "2255"]
[BlackElo "2168"]
[Result "1-0"]
[Round "02"]
[TimeControl "180+1"]
[Date "2022.11.02"]
[WhiteClock "0:00:02"]
[BlackClock "0:00:01"]

1. e4 {[%clk 0:03:00]}  c5 {[%clk 0:02:58]} 2. c3 {[%clk 0:03:00]}  d5 {[%clk 0:02:57]} 3. exd5 {[%clk 0:03:00]}  Qxd5 {[%clk 0:02:57]} 4. d4 {[%clk 0:03:01]}  Nf6 {[%clk 0:02:56]} 5. Nf3 {[%clk 0:03:01]}  Bg4 {[%clk 0:02:55]} 6. dxc5 {[%clk 0:03:01]}  Qxc5 {[%clk 0:02:55]} 7. Be3 {[%clk 0:03:01]}  Qc7 {[%clk 0:02:55]} 8. Be2 {[%clk 0:03:00]}  a6 {[%clk 0:02:55]} 9. O-O {[%clk 0:02:59]}  e6 {[%clk 0:02:55]} 10. Nbd2 {[%clk 0:02:58]}  Nbd7 {[%clk 0:02:54]} 11. a4 {[%clk 0:02:54]}  Bc5 {[%clk 0:02:51]} 12. Bg5 {[%clk 0:02:50]}  O-O {[%clk 0:02:49]} 13. h3 {[%clk 0:02:50]}  Bf5 {[%clk 0:02:49]} 14. Nc4 {[%clk 0:02:44]}  Ne4 {[%clk 0:02:43]} 15. Be3 {[%clk 0:02:30]}  Rad8 {[%clk 0:02:35]} 16. Bxc5 {[%clk 0:02:28]}  Ndxc5 {[%clk 0:02:35]} 17. Qe1 {[%clk 0:02:15]}  Nb3 {[%clk 0:02:27]} 18. Rd1 {[%clk 0:02:13]}  Qc5 {[%clk 0:02:11]} 19. Ne3 {[%clk 0:02:01]}  Bg6 {[%clk 0:01:59]} 20. Bc4 {[%clk 0:01:53]}  Qb6 {[%clk 0:01:49]} 21. Ne5 {[%clk 0:01:42]}  Na5 {[%clk 0:01:45]} 22. Nd7 {[%clk 0:01:26]}  Qxb2 {[%clk 0:01:30]} 23. Nxf8 {[%clk 0:01:23]}  Rxf8 {[%clk 0:01:31]} 24. Bd3 {[%clk 0:01:21]}  Nxc3 {[%clk 0:01:29]} 25. Rd2 {[%clk 0:01:07]}  Qa3 {[%clk 0:01:29]} 26. Bxg6 {[%clk 0:01:05]}  hxg6 {[%clk 0:01:30]} 27. Rd3 {[%clk 0:01:02]}  Rc8 {[%clk 0:01:26]} 28. Nd1 {[%clk 0:01:00]}  Qxa4 {[%clk 0:01:07]} 29. Rxc3 {[%clk 0:00:58]}  Rd8 {[%clk 0:01:07]} 30. Ne3 {[%clk 0:00:55]}  Nc6 {[%clk 0:01:06]} 31. Qb1 {[%clk 0:00:52]}  Rd7 {[%clk 0:01:02]} 32. Nc4 {[%clk 0:00:45]}  Re7 {[%clk 0:00:55]} 33. Nd6 {[%clk 0:00:37]}  Nd4 {[%clk 0:00:53]} 34. Rc8+ {[%clk 0:00:31]}  Kh7 {[%clk 0:00:53]} 35. Nxb7 {[%clk 0:00:30]}  Ne2+ {[%clk 0:00:46]} 36. Kh1 {[%clk 0:00:29]}  Qd7 {[%clk 0:00:40]} 37. Rc2 {[%clk 0:00:19]}  Nd4 {[%clk 0:00:35]} 38. Rd2 {[%clk 0:00:18]}  e5 {[%clk 0:00:31]} 39. Nc5 {[%clk 0:00:18]}  Qc6 {[%clk 0:00:30]} 40. Nd3 {[%clk 0:00:13]}  f6 {[%clk 0:00:28]} 41. Qa1 {[%clk 0:00:11]}  Nb3 {[%clk 0:00:23]} 42. Qa2 {[%clk 0:00:07]}  Nxd2 {[%clk 0:00:23]} 43. Qxd2 {[%clk 0:00:07]}  Rd7 {[%clk 0:00:23]} 44. Qe3 {[%clk 0:00:07]}  Qc4 {[%clk 0:00:21]} 45. Nc5 {[%clk 0:00:06]}  Qxf1+ {[%clk 0:00:20]} 46. Kh2 {[%clk 0:00:06]}  Rd1 {[%clk 0:00:20]} 47. Ne6 {[%clk 0:00:04]}  Qg1+ {[%clk 0:00:12]} 48. Kg3 {[%clk 0:00:04]}  Qf1 {[%clk 0:00:12]} 49. Nf8+ {[%clk 0:00:04]}  Kg8 {[%clk 0:00:12]} 50. Qc5 {[%clk 0:00:04]}  Rd3+ {[%clk 0:00:12]} 51. Kh2 {[%clk 0:00:04]}  Qd1 {[%clk 0:00:10]} 52. Ne6 {[%clk 0:00:03]}  Rd7 {[%clk 0:00:05]} 53. Qf8+ {[%clk 0:00:02]}  Kh7 {[%clk 0:00:06]} 54. Nc5 {[%clk 0:00:02]}  Rd8 {[%clk 0:00:04]} 55. Qf7 {[%clk 0:00:01]}  Qd6 {[%clk 0:00:03]} 56. Ne6 {[%clk 0:00:01]}  Rd7 {[%clk 0:00:03]} 57. Nf8+ {[%clk 0:00:02]}  Kh6 {[%clk 0:00:03]} 58. Nxd7 {[%clk 0:00:02]}  g5 {[%clk 0:00:02]} 59. Nf8 {[%clk 0:00:02]}  f5 {[%clk 0:00:01]} 60. Qg8 {[%clk 0:00:02]} 1-0


[Site "https://www.chess.com"]

[Event "Titled Tuesday Blitz November 01 Early 2022"]
[White "Rosh Jain"]
[Black "Xie, Bryan"]
[WhiteFideId "25789465"]
[BlackFideId "30941296"]
[WhiteElo "2233"]
[BlackElo "2033"]
[Result "1-0"]
[Round "02"]
[TimeControl "180+1"]
[Date "2022.11.02"]
[WhiteClock "0:00:04"]
[BlackClock "0:01:20"]

1. e4 {[%clk 0:02:55]}  c5 {[%clk 0:02:57]} 2. Nf3 {[%clk 0:02:55]}  e6 {[%clk 0:02:58]} 3. d4 {[%clk 0:02:55]}  cxd4 {[%clk 0:02:59]} 4. Nxd4 {[%clk 0:02:54]}  Nc6 {[%clk 0:02:59]} 5. Nc3 {[%clk 0:02:53]}  Qc7 {[%clk 0:02:58]} 6. Be3 {[%clk 0:02:53]}  a6 {[%clk 0:02:57]} 7. Bd3 {[%clk 0:02:52]}  Nf6 {[%clk 0:02:53]} 8. O-O {[%clk 0:02:52]}  b5 {[%clk 0:02:47]} 9. Kh1 {[%clk 0:02:52]}  Bb7 {[%clk 0:02:47]} 10. f4 {[%clk 0:02:48]}  Nxd4 {[%clk 0:02:31]} 11. Bxd4 {[%clk 0:02:47]}  Bc5 {[%clk 0:02:31]} 12. Bxc5 {[%clk 0:01:49]}  Qxc5 {[%clk 0:02:32]} 13. e5 {[%clk 0:01:49]}  b4 {[%clk 0:02:16]} 14. exf6 {[%clk 0:00:36]}  bxc3 {[%clk 0:02:01]} 15. fxg7 {[%clk 0:00:24]}  Rg8 {[%clk 0:01:56]} 16. Qg4 {[%clk 0:00:09]}  cxb2 {[%clk 0:01:55]} 17. Rab1 {[%clk 0:00:08]}  Qc3 {[%clk 0:01:55]} 18. Rf2 {[%clk 0:00:03]}  Rxg7 {[%clk 0:01:55]} 19. Qe2 {[%clk 0:00:04]}  Qd4 {[%clk 0:01:44]} 20. f5 {[%clk 0:00:03]}  e5 {[%clk 0:01:40]} 21. f6 {[%clk 0:00:03]}  Rg5 {[%clk 0:01:40]} 22. Bxh7 {[%clk 0:00:02]}  O-O-O {[%clk 0:01:32]} 23. c3 {[%clk 0:00:01]}  Qh4 {[%clk 0:01:29]} 24. Rxb2 {[%clk 0:00:01]}  Qxh7 {[%clk 0:01:25]} 25. Qc4+ {[%clk 0:00:02]}  Kb8 {[%clk 0:01:22]} 26. Rxb7+ {[%clk 0:00:02]}  Kxb7 {[%clk 0:01:19]} 27. Rb2+ {[%clk 0:00:03]}  Ka8 {[%clk 0:01:20]} 28. Qd5+ {[%clk 0:00:03]}  Ka7 {[%clk 0:01:20]} 29. Qb7# {[%clk 0:00:04]} 1-0


[Site "https://www.chess.com"]

[Event "Titled Tuesday Blitz November 01 Early 2022"]
[White "Sanchez, Robert"]
[Black "Melikyan, Gnel"]
[WhiteFideId "2034360"]
[BlackFideId "54109990"]
[WhiteElo "2402"]
[BlackElo "2138"]
[Result "0-1"]
[Round "02"]
[TimeControl "180+1"]
[Date "2022.11.02"]
[WhiteClock "0:00:26"]
[BlackClock "0:01:24"]

1. Nf3 {[%clk 0:03:00]}  Nf6 {[%clk 0:02:56]} 2. e3 {[%clk 0:03:01]}  g6 {[%clk 0:02:56]} 3. c4 {[%clk 0:03:01]}  Bg7 {[%clk 0:02:56]} 4. Nc3 {[%clk 0:03:01]}  O-O {[%clk 0:02:56]} 5. d4 {[%clk 0:03:02]}  d5 {[%clk 0:02:55]} 6. cxd5 {[%clk 0:03:01]}  Nxd5 {[%clk 0:02:55]} 7. Bc4 {[%clk 0:03:00]}  Be6 {[%clk 0:02:53]} 8. Bb3 {[%clk 0:02:54]}  c5 {[%clk 0:02:49]} 9. O-O {[%clk 0:02:47]}  cxd4 {[%clk 0:02:45]} 10. Nxd4 {[%clk 0:02:41]}  Nxc3 {[%clk 0:02:22]} 11. bxc3 {[%clk 0:02:32]}  Bd5 {[%clk 0:02:11]} 12. Qe2 {[%clk 0:01:43]}  Bxb3 {[%clk 0:01:51]} 13. axb3 {[%clk 0:01:40]}  Nd7 {[%clk 0:01:50]} 14. Rd1 {[%clk 0:01:39]}  Qb6 {[%clk 0:01:50]} 15. b4 {[%clk 0:01:25]}  Rfc8 {[%clk 0:01:46]} 16. Bb2 {[%clk 0:00:53]}  Ne5 {[%clk 0:01:43]} 17. Nb3 {[%clk 0:00:41]}  Nc4 {[%clk 0:01:39]} 18. Rac1 {[%clk 0:00:27]}  Nxb2 {[%clk 0:01:31]} 19. Qxb2 {[%clk 0:00:27]}  Qxb4 {[%clk 0:01:29]} 20. cxb4 {[%clk 0:00:26]}  Bxb2 {[%clk 0:01:29]} 21. Rb1 {[%clk 0:00:26]}  Bf6 {[%clk 0:01:24]} 0-1


[Site "https://www.chess.com"]

[Event "Titled Tuesday Blitz November 01 Early 2022"]
[White "Sargsyan, Anna M."]
[Black "Terry, Renato"]
[WhiteFideId "13308130"]
[BlackFideId "3803457"]
[WhiteElo "2284"]
[BlackElo "2577"]
[Result "0-1"]
[Round "02"]
[TimeControl "180+1"]
[Date "2022.11.01"]
[WhiteClock "0:00:18"]
[BlackClock "0:01:09"]

1. d4 {[%clk 0:03:00]}  d5 {[%clk 0:02:59]} 2. c4 {[%clk 0:03:00]}  dxc4 {[%clk 0:03:00]} 3. Nf3 {[%clk 0:03:01]}  Nf6 {[%clk 0:03:00]} 4. e3 {[%clk 0:03:01]}  e6 {[%clk 0:03:01]} 5. Bxc4 {[%clk 0:03:01]}  a6 {[%clk 0:03:02]} 6. O-O {[%clk 0:03:00]}  c5 {[%clk 0:03:02]} 7. Qe2 {[%clk 0:03:00]}  b5 {[%clk 0:03:02]} 8. Bd3 {[%clk 0:03:00]}  Bb7 {[%clk 0:03:02]} 9. a4 {[%clk 0:02:59]}  b4 {[%clk 0:03:00]} 10. Nbd2 {[%clk 0:02:58]}  Nbd7 {[%clk 0:03:00]} 11. Nc4 {[%clk 0:02:59]}  Be7 {[%clk 0:03:00]} 12. Rd1 {[%clk 0:02:59]}  Qc7 {[%clk 0:02:58]} 13. a5 {[%clk 0:02:55]}  O-O {[%clk 0:02:57]} 14. b3 {[%clk 0:02:52]}  cxd4 {[%clk 0:02:56]} 15. exd4 {[%clk 0:02:51]}  Nd5 {[%clk 0:02:55]} 16. Bd2 {[%clk 0:02:48]}  Nf4 {[%clk 0:02:50]} 17. Bxf4 {[%clk 0:02:41]}  Qxf4 {[%clk 0:02:51]} 18. Qe3 {[%clk 0:02:33]}  Qxe3 {[%clk 0:02:18]} 19. fxe3 {[%clk 0:02:34]}  Nf6 {[%clk 0:02:18]} 20. Rac1 {[%clk 0:02:20]}  Nd5 {[%clk 0:02:17]} 21. Kf2 {[%clk 0:02:07]}  Nc3 {[%clk 0:02:17]} 22. Re1 {[%clk 0:02:05]}  Rac8 {[%clk 0:02:11]} 23. e4 {[%clk 0:01:55]}  Rfd8 {[%clk 0:02:10]} 24. Nb6 {[%clk 0:01:46]}  Rc7 {[%clk 0:02:09]} 25. Ke3 {[%clk 0:01:42]}  h5 {[%clk 0:01:54]} 26. Rc2 {[%clk 0:01:35]}  g6 {[%clk 0:01:54]} 27. Rf2 {[%clk 0:01:34]}  Bf8 {[%clk 0:01:53]} 28. h4 {[%clk 0:01:25]}  Bh6+ {[%clk 0:01:52]} 29. Ng5 {[%clk 0:01:26]}  Bg7 {[%clk 0:01:47]} 30. Nf3 {[%clk 0:01:05]}  f6 {[%clk 0:01:31]} 31. Rc2 {[%clk 0:00:57]}  e5 {[%clk 0:01:23]} 32. Bc4+ {[%clk 0:00:52]}  Kh8 {[%clk 0:01:12]} 33. dxe5 {[%clk 0:00:51]}  Bxe4 {[%clk 0:01:10]} 34. Rd2 {[%clk 0:00:26]}  Bh6+ {[%clk 0:01:09]} 35. Kf2 {[%clk 0:00:18]}  Bxd2 {[%clk 0:01:09]} 0-1


[Site "https://www.chess.com"]